Cogmind - Beta 16.1 @@@ ROGUE MODE // 2026.03.30 @ 16:01:04 Player: KURIIRI Result: Destroyed by 6C-XOH(R) with Subdweller Beam Cannon Performance ------------- Evolutions (0) 0 Regions Visited (2) 400 Robots Destroyed (40) 200 Value Destroyed (1074) 1074 Prototype IDs (18) 360 Alien Tech Used (0) 0 Bonus (-66) -66 TOTAL SCORE: 1968 Bonus ------- Friendly Fire -66 Cogmind --------- Core Integrity 0/250 Matter 300/300 Energy 140/200 System Corruption 2% Temperature Cool (41) Movement Rolling (130) Ox2 Location -10/Subcaves Parts ------- > --- POWER (1) -------- Subdweller Power Source > --- PROPULSION (2) --- Light Treads Subdweller Monowheel > --- UTILITY (2) ------ Large Storage Unit Subdweller Optics > --- WEAPON (2) ------- Subdweller Beam Cannon Subdweller Beam Cannon > --- INVENTORY (15) --- Ion Engine Ion Engine Light Nuclear Core Light Treads Wheel Improved Heat Sink Huge Storage Unit Medium Matter Pod (100) Improved Terrain Scanner Recalibrator Heavy Assault Rifle Subdweller Machine Gun Grenade Launcher Makeshift Spear Peak State ------------ > --- POWER ------------ Subdweller Power Source > --- PROPULSION ------- Light Treads Subdweller Monowheel > --- UTILITY ---------- Large Storage Unit Subdweller Optics > --- WEAPON ----------- Subdweller Beam Cannon Subdweller Beam Cannon > --- INVENTORY -------- Ion Engine Ion Engine Light Nuclear Core Light Treads Wheel Improved Heat Sink Huge Storage Unit Medium Matter Pod Improved Terrain Scanner Recalibrator Heavy Assault Rifle Subdweller Machine Gun Grenade Launcher Makeshift Spear [Rating: 14] Favorites ----------- Power Ion Engine Engine Ion Engine Propulsion Light Treads Treads Light Treads Leg Aluminum Leg Wheel Subdweller Monowheel Utility Large Storage Unit Device Subdweller Optics Storage Large Storage Unit Protection Light Armor Plating Weapon Heavy Assault Rifle Energy Gun Subdweller Laser Energy Cannon Subdweller Beam Cannon Ballistic Gun Heavy Assault Rifle Launcher Grenade Launcher Special Melee Weapon Datajack Build | -11 -10 -10 ------- Run | Yrd Mat Sub Slots Evolved . | . . . Power . | . . . Propulsion . | . . . Utility . | . . . Weapon . | . . . Parts Attached 19 | 3 8 8 Power 2 | . 1 1 Engine 2 | . 1 1 Core . | . . . Reactor . | . . . Propulsion 5 | 2 1 2 Treads 4 | 2 1 1 Leg . | . . . Wheel 1 | . . 1 Hover . | . . . Flight . | . . . Utility 5 | 1 2 2 Device 3 | 1 . 2 Storage 1 | . 1 . Processor . | . . . Hackware . | . . . Protection 1 | . 1 . Artifact . | . . . Weapon 7 | . 4 3 Energy Gun 1 | . . 1 Energy Cannon 2 | . . 2 Ballistic Gun 2 | . 2 . Ballistic Cannon . | . . . Launcher 1 | . 1 . Special Weapon . | . . . Impact Weapon . | . . . Slashing Weapon . | . . . Piercing Weapon . | . . . Special Melee Weapon 1 | . 1 . Unidentified Prototypes . | . . . Parts Lost 3 | . . 3 Power 1 | . . 1 Propulsion 1 | . . 1 Utility 1 | . . 1 Weapon . | . . . Highest Loss Streak 2 | . . 2 To Critical Strikes . | . . . Average Backups 12 | 6 11 14 Power 2 | 1 2 3 Propulsion 2 | 4 2 2 Utility 4 | . 3 5 Weapon 2 | 1 2 3 Tool/Special . | . . . Unused Backups 22 | . 9 13 Power 5 | . 2 3 Propulsion 3 | . 1 2 Utility 6 | . 2 4 Weapon 8 | . 4 4 Tool/Special . | . . . Average Slot Usage (%) 98 | . 100 96 Engine 13 | . 14 13 Treads 27 | . 28 27 Device 5 | . 3 6 Storage 14 | . 14 14 Protection 7 | . 10 4 Energy Gun 7 | . 6 8 Energy Cannon 3 | . . 7 Ballistic Gun 16 | . 21 11 Peak Build Rating 14 | 9 13 14 Average Rating 10 | 7 10 11 On Entrance 8 | 6 9 11 Avg Prop Armor Cover (%) 15 | . . 15 Naked Turns . | . . . Heaviest Build 43 | 14 34 43 Greatest Support 40 | 40 40 40 Greatest Overweight (x) 4 | . 4 2 Average Overweight (x) . | . . . Largest Inventory Capacity 15 | 8 15 15 Average Capacity 13 | 8 12 15 Most Carried 15 | 6 15 15 Average Carried 12 | 5 11 14 Final Capacity 15 | 8 15 15 Final Carried 15 | 4 15 14 Class Distribution -------------------- 80% | Mutant 19% | Scavenger-Mutant Dominant Class ---------------- Mutant | -10/Materials Mutant | -10/Subcaves Resources | -11 -10 -10 ----------- Run | Yrd Mat Sub Matter Collected 1031 | 224 513 294 Remotely . | . . . Salvage Created 1413 | 75 679 659 Parts 89 | 3 45 41 Haulers Intercepted 2 | . 2 . Recyclers Shooed 3 | . 3 . Parts Field Recycled . | . . . Retrieved Matter . | . . . Parts Self-Destructed 3 | . . 3 Prevented . | . . . Parts Restored . | . . . Kills | -11 -10 -10 ------- Run | Yrd Mat Sub Combat Hostiles Destroyed 30 | . 17 13 Guns 14 | . 10 4 Cannons 8 | . . 8 AOE 8 | . 7 1 Classes Destroyed 11 | 2 7 2 Worker 1 | . 1 . Builder 1 | . 1 . Tunneler 1 | 1 . . Hauler 2 | . 2 . Recycler 1 | 1 . . Mechanic 1 | . 1 . Watcher 3 | . 3 . Swarmer 6 | . 6 . Grunt 11 | . 11 . Artisan 2 | . . 2 Subdweller 13 | . . 13 Best Kill Streak 6 | 2 6 3 Combat Bots Only 4 | . 4 3 Max Kills in Single Turn 2 | 1 2 1 Gunslinging 1 | . 1 . Exploded 2 | . 2 1 Melee . | . . . Uniques/NPCs Destroyed . | . . . Combat | -11 -10 -10 -------- Run | Yrd Mat Sub Hostile Shots Fired 84 | . 44 40 Missed 22 | . 11 11 Hits 62 | . 33 29 Projectile 62 | . 33 29 Critical Strikes 1 | . 1 . Damage Taken 1047 | . 387 660 Core 273 | . 68 205 Absorbed by Shields . | . . . Core Remaining (%) 100 | 100 . . Volleys Fired 119 | 10 45 64 Largest 2 | 2 2 2 Hottest 160 | 90 90 160 Shots Fired 197 | 20 85 92 Gun 150 | 20 74 56 Cannon 35 | . . 35 Launcher 12 | . 11 1 Special . | . . . Kinetic 82 | . 44 38 Thermal 103 | 20 30 53 Explosive 12 | . 11 1 Electromagnetic . | . . . Robot Hit Streak 28 | 8 10 28 Robot Miss Streak 5 | 1 5 2 Penetration Max . | . . . Secondary Targets 2 | . 2 . Max Gunslinging Chain 1 | . 1 . Shots Hit Robots 128 | 16 54 58 Core Hits 60 | 3 36 21 Critical Kills 1 | . 1 . Critical Parts Destroyed . | . . . Critical Strikes 4 | . 2 2 Burn 1 | . 1 . Destroy 3 | . 1 2 Melee Attacks 2 | . 2 . Impact . | . . . Slashing . | . . . Piercing . | . . . Sneak Attacks 2 | . 2 . Combat Hostiles . | . . . Follow-up Attacks . | . . . Damage Inflicted 2706 | 191 1339 1176 Guns 1311 | 191 685 435 Cannons 688 | . . 688 Explosions 676 | . 623 53 Melee . | . . . Ramming 31 | . 31 . Kinetic 853 | . 476 377 Thermal 1146 | 191 209 746 Explosive 676 | . 623 53 Electromagnetic . | . . . Impact . | . . . Slashing . | . . . Piercing . | . . . Highest Corruption 2 | . 2 2 Average Corruption 2 | . 2 2 Corruption Purged . | . . . Corruption Blocked . | . . . Effects 37 | . 18 19 Message Errors 8 | . 5 3 Matter Fused 16 | . 7 9 Heat Flow Errors 1 | . . 1 Energy Discharges 2 | . . 2 Parts Fused 1 | . . 1 Data Loss (minor) 6 | . 4 2 Data Loss (major) 1 | . . 1 Misfires 1 | . 1 . Alerts 1 | . 1 . Overload Shots . | . . . Overflow Damage 38 | . 38 . Projectiles . | . . . Explosions 38 | . 38 . Melee . | . . . Knockbacks . | . . . Impact . | . . . Kinetic . | . . . Secondary . | . . . Self-Inflicted Damage 11 | . 11 . Shots 1 | . 1 . Rammed 6 | . 6 . Targets Rammed 6 | . 6 . Kicked . | . . . Crushed . | . . . Highest Temperature 318 | 150 318 114 Average Temperature 75 | 57 101 32 Received Heat Transfer 315 | . 180 135 Siege Activations . | . . . Martial Activations . | . . . Shielding Activations . | . . . Robots Disrupted . | . . . Combat Hostiles . | . . . Robots Corrupted . | . . . Combat Hostiles . | . . . Parts Fried . | . . . Impact Corruptions . | . . . Robots Melted . | . . . Combat Hostiles . | . . . Parts Melted 6 | . 3 3 Heat Transferred 2152 | 496 656 1000 Parts Sabotaged . | . . . Parts Stolen . | . . . Parts Stripped . | . . . Power Chain Reactions . | . . . Alert | -11 -10 -10 ------- Run | Yrd Mat Sub Maximum Alert Level 1 | . 1 . Low Security (%) 56 | 100 54 . Level 1 43 | . 45 . Level 2 . | . . . Level 3 . | . . . Level 4 . | . . . Level 5 . | . . . High Security . | . . . Max Security . | . . . Peak Influence 359 | 10 359 . Initial . | . . . Average 139 | . 145 . Influence Increases 640 | 10 630 . Destroy 0b10 Robot/C 340 | . 340 . Destroy 0b10 Robot/NC 50 | 10 40 . Destroy Leader 80 | . 80 . Successful Hack 27 | . 27 . Select Force Hacks 60 | . 60 . Disable Machine 15 | . 15 . Destroy Structure 53 | . 53 . Lose Combat Pursuer 15 | . 15 . Influence Decreases 640 | 10 443 187 Entered New Map 91 | . . 91 Time Decay 549 | 10 443 96 Squads Dispatched 3 | . 3 . Investigation 3 | . 3 . Extermination . | . . . Reinforcement . | . . . Assault . | . . . Garrison . | . . . Intercept . | . . . Searches Triggered . | . . . Construction Impeded . | . . . Haulers Reinforced . | . . . Active Scanning Responses . | . . . Cargo Convoy Interrupts . | . . . Stealth | -11 -10 -10 --------- Run | Yrd Mat Sub Distress Signals 2 | . 2 . Communications Jammed . | . . . Distress Signals . | . . . Times Spotted 37 | . 23 14 Peak Tracking Total 4 | . 4 3 Tactical Retreats 1 | . 1 . Traps | -11 -10 -10 ------- Run | Yrd Mat Sub Traps Triggered 4 | . 4 . Indirectly . | . . . Trap Hack Attempts . | . . . Triggered . | . . . Disarmed . | . . . Reprogrammed . | . . . Reused . | . . . Traps Extracted . | . . . Installed . | . . . Triggered . | . . . Machines | -11 -10 -10 ---------- Run | Yrd Mat Sub Machines Disabled 1 | . 1 . Max in Single Turn 1 | . 1 . Machines Repaired . | . . . Machines Dismantled . | . . . Machines Sabotaged . | . . . Overloaded Fab Kills . | . . . Hacking | -11 -10 -10 --------- Run | Yrd Mat Sub Machines Accessed 11 | . 9 2 Terminals 7 | . 7 . Fabricators . | . . . Repair Stations . | . . . Recycling Units 2 | . 2 . Scanalyzers . | . . . Garrison Access . | . . . Total Hacks 34 | . 28 6 Successful 25 | . 19 6 Failed 9 | . 9 . Catastrophic . | . . . Database Lockouts . | . . . Manual 23 | . 23 . Terminals 26 | . 26 . Fabricators . | . . . Repair Stations . | . . . Recycling Units 2 | . 2 . Scanalyzers . | . . . Garrison Access . | . . . Terminal Hacks 14 | . 8 6 Record 5 | . . 5 Robot Analysis 4 | . 4 . Prototype ID Bank 3 | . 3 . Locate Traps 1 | . 1 . Proto ID Catalog 1 | . . 1 Fabricator Hacks . | . . . Repair Station Hacks . | . . . Recycling Unit Hacks . | . . . Scanalyzer . | . . . Garrison Access Hacks . | . . . Unauthorized Hacks 11 | . 11 . Terminals 9 | . 9 . Botnet 3 | . 3 . Operators 1 | . 1 . Skim 5 | . 5 . Fabricators . | . . . Repair Stations . | . . . Recycling Units 2 | . 2 . Tunnel 2 | . 2 . Scanalyzers . | . . . Garrison Access . | . . . Data Cores Recovered . | . . . Used . | . . . Hacking Detections 6 | . 6 . Full Trace Events . | . . . Feedback Events . | . . . Feedback Blocked . | . . . Robot Schematics Acquired . | . . . Robots Built . | . . . Authchips . | . . . Time . | . . . Total Robot Build Rating . | . . . Part Schematics Acquired . | . . . Parts Built . | . . . Authchips . | . . . Time . | . . . Total Part Build Rating . | . . . Part Studies Acquired . | . . . Parts Repaired . | . . . Time . | . . . Parts Recycled . | . . . Recycled Matter . | . . . Retrieved Matter . | . . . Retrieved Components . | . . . Parts Scanalyzed . | . . . Part Schematics Acquired . | . . . Parts Damaged . | . . . Bothacking | -11 -10 -10 ------------ Run | Yrd Mat Sub Used RIF Installer . | . . . Robots Hacked 1 | . 1 . Non-combat 1 | . 1 . Combat . | . . . Robot Hacks Applied 1 | . 1 . parse_system 1 | . 1 . Relay Couplers Released . | . . . Fabnet Peak Effective % . | . . . Robots Rewired . | . . . Allies Hacked . | . . . Hacks Repelled . | . . . Allies | -11 -10 -10 -------- Run | Yrd Mat Sub Total Allies . | . . . Largest Group . | . . . Highest-Rated Group . | . . . Highest-Rated Ally . | . . . Total Orders . | . . . Ally Attacks . | . . . Total Damage . | . . . Kills . | . . . Allies Corrupted . | . . . Allies Melted . | . . . Intel | -11 -10 -10 ------- Run | Yrd Mat Sub Active Infowar (turns) 989 | 28 468 493 Optics 493 | . . 493 Terrain 496 | 28 468 . Robot Analysis Total 4 | . 4 . Derelict Logs Recovered 3 | . . 3 Drone Launches . | . . . Drone Recoveries . | . . . Exploration | -11 -10 -10 ------------- Run | Yrd Mat Sub Turns Passed 3420 | 74 1741 1605 Spaces Moved 1817 | 33 908 876 Core 1 | . 1 . Treads 1733 | 3 907 823 Legs 30 | 30 . . Wheels 53 | . . 53 Hover . | . . . Flight . | . . . Fastest Speed 120 | 120 160 130 Average Speed 158 | 123 160 159 Slowest Speed 250 | 160 250 240 Overloaded Moves . | . . . Propulsion Burnouts . | . . . Robots Hopped . | . . . Potential Cave-ins . | . . . Cave-ins Triggered . | . . . Exploration Rate (%) 54 | 3 98 63 Regions Visited 2 Branch Regions 1 Pre-discovered Areas 6 | . 3 3 Known Exits Taken 1 | . 1 . Unknown Exits Taken 1 | 1 . . Scrap Searched 3 | . . 3 Spaces Dug 6 | . 6 . Terrain Destroyed 56 | . 47 9 Melee . | . . . Projectile 3 | . . 3 AOE 53 | . 47 6 Terrain Rammed . | . . . Walls Destroyed . | . . . Machines Disabled . | . . . Actions | -11 -10 -10 --------- Run | Yrd Mat Sub Total 2151 | 47 1108 996 Wait 148 | . 108 40 Move 1815 | 32 907 876 Hop . | . . . Pick Up 19 | . 17 2 Fast Attach 9 | 1 4 4 Attach 4 | 2 . 2 Detach . | . . . Swap 13 | . 9 4 Drop 16 | 2 10 4 Fire 119 | 10 45 64 Melee 2 | . 2 . Ram . | . . . Kick . | . . . Crush 6 | . 6 . Escape Stasis . | . . . Rewire . | . . . Trap . | . . . Miscellaneous . | . . . Route ------- -11/Scrapyard -10/Materials (discovered 6 exits: *Mat x3 / [*Min x2] / *Sub) -10/Subcaves (discovered 3 exits: [*Mat] / Rec / [*Scr]) History --------- Turn | Location | Event 16 | -11/Scrapyard | Discovered new exit (range 3) 75 | -11/Scrapyard | Entered Materials 309 | -10/Materials | Discovered new exit (range 9) 317 | -10/Materials | Build established: Mutant 439 | -10/Materials | Discovered new exit (range 11) 634 | -10/Materials | Discovered new exit (range 14) 1014 | -10/Materials | Discovered new exit (range 15) 1473 | -10/Materials | Learned location of 1 exit from Storage 1481 | -10/Materials | Discovered new exit (range 6) 1584 | -10/Materials | Learned Storage stockpile data 1624 | -10/Materials | Learned location of Mines (-8) 1677 | -10/Materials | Identified exit to Materials 1677 | -10/Materials | Identified exit to Subcaves 1690 | -10/Materials | Loaded intel: 10 interactive machine locations 1713 | -10/Materials | Learned 2 Materials zone layouts 1748 | -10/Materials | Learned 2 Mines zone layouts 1791 | -10/Materials | Learned 2 Storage zone layouts 1816 | -10/Materials | Entered Subcaves 1817 | -10/Subcaves | Approached by a straggling Scientist 1858 | -10/Subcaves | Identified exit to Recycling 1993 | -10/Subcaves | Core integrity fell below 50% 2132 | -10/Subcaves | Shifting Twisted Machinery released Scrap Shield 2351 | -10/Subcaves | Visited Clippyterm 2356 | -10/Subcaves | Learned location of Deep Caves (-6) 2356 | -10/Subcaves | Learned Factory fabricator intel 2377 | -10/Subcaves | Shifting Twisted Machinery released Mak. Spear 2629 | -10/Subcaves | A swath of the cavern ceiling suddenly collapsed 2652 | -10/Subcaves | Disturbed a concealed Subdweller 2941 | -10/Subcaves | Scientist uncovered a shortcut to Scraptown 3029 | -10/Subcaves | Build established: Scavenger-Mutant 3075 | -10/Subcaves | Discovered new exit (range 5) 3212 | -10/Subcaves | Visited 4L-MR0's lab 3297 | -10/Subcaves | Core integrity fell below 20% 3347 | -10/Subcaves | A Subdweller sparked back to life 3421 | -10/Subcaves | Destroyed by 6C-XOH(R) with Subdweller Beam Cannon Last Messages --------------- down. 03292_ BJ-AEN(R) destroyed. 03296_ HC-XSD(R) destroyed. 03303_ Dropped Sub. Laser. 03303_ Acquired Sub. Beam Cannon. 03307_ Acquired 10 matter. 03308_ System corrupted: Matter fused (-10). 03308_ Acquired 10 matter. 03317_ Subatomizers dissect the Sub. Optics. 03325_ System corrupted: Energy discharge (-40). 03326_ Dropped Lgt. Treads. 03327_ Acquired Sub. Monowheel. 03328_ Subatomizers dissect the Sub. Optics. 03347_ DT-FSS(R) destroyed. 03347_ FF-GF0(R) creaks and sparks as it begins to move. 03361_ Disposable Heat Sink melted. 03361_ C3-XUO(R) destroyed. 03367_ FF-GF0(R) destroyed. 03370_ Acquired 10 matter. Map ----- +----------------------------------------------------+ | ??????????????????### ##*=# #???????????????????? | | ?????????????????## ###???????????????????? | | ??????????????#### #?????????????????????? | | ??????????????# " ##??#??????????????????? | | ??????????????# ###?? ##?????????????????? | | ??????????????#& ##??? #?????????????????? | | ??????????????# *&= ##??? #?????????????????? | | ??????????????## "%* #?? #?????????????????? | | ???????????????#"#![ ##?# #?????????????????? | | ?????????????????## ### ##????????????????? | | ??????????????????## #????????????????? | | ???????????????????# ?????????? | | ???????????????????# ## ## ?????????? | | ???????????????????##### #?###### ?????????? | | ??????????????????????# #??????????????????????? | | ??????????????????????## #??????????????????????? | | ???????????????????????# ##??????????????????????? | | ???????????????????????# #?#?????####????????????? | | ???????????????????????# ## #??## ####?????????? | | ???????????????????????# ##?# ?????????? | | ??????????????????????# # ## ????????? | | ??????????????????????#### # #??????????? | | ????????????????????????## ## #???????????? | | ????????????????????????# #?????????????????? | | ????????????????????????# ##?????????????????? | | ????????????????????????#@ ##?????????????????? | | ????????????????????????# #?????????????????? | | ????????????????????????#R #?????????????????? | | ??????????????????????? ## #????????????????? | | ????????????????????? "##< #? ???????????????? | | ???????????????????# $?? ?? ?????????????? | | ???????????????????##??## ?? #???????????? | | ???????????????????????? ?? #??????????? | | ???????????????????????? ## ? ??????????? | | ???????????????????????#####?# ? #?????????? | | ?????????????????????????????? ??????????????? | | ??????????????????????????????##### ?????????????? | | ?????????????????????????????????????????????????? | | ?????????????????????????????????????????????????? | | ?????????????????????????????????????????????????? | | ?????????????????????????????????????????????????? | | ?????????????????????????????????????????????????? | | ?????????????????????????????????????????????????? | | ?????????????????????????????????????????????????? | | ?????????????????????????????????????????????????? | | ?????????????????????????????????????????????????? | | ?????????????????????????????????????????????????? | | ?????????????????????????????????????????????????? | | ?????????????????????????????????????????????????? | | ?????????????????????????????????????????????????? | +----------------------------------------------------+ Best States ------------- Heat Dissipation 35 Energy Generation 15 Energy Capacity 250 Matter Stores 300 Matter Capacity 300 Sight Range 21 Terrain Scan Range 16 Terrain Scan Density 10 Armor Coverage 150 Evasion (%) 55 Recoil Reduction 2 Item Schematics ----------------- None Robot Schematics ------------------ None Fabricated ------------ Nothing Repaired ---------- Nothing Studied --------- None Alien Tech Used ----------------- None Achievements -------------- None Challenges ------------ None Game ------ Seed NeutrinoGammaBrace Manual? 0 Play Time 00:19:11 Cumulative 375.2 hours Start 2026.03.30 @ 15:42:41 End 2026.03.30 @ 16:01:04 Sessions 1 Manual Loads 0 Difficulty Rogue Special Mode None Game No. 305 Rogue 269 Adventurer 36 Explorer 0 Win Type - Total 5 Types 2/0/0/1/0/0/0/2/0/0 Lore% 69 Gallery% 66 Achievement% 54 Wizard Run 0 Options --------- Layout 1 ASCII 0 Keyboard 0 Movement Numpad Keybinds 0 Fullscreen 1 Font 48/Smallcaps Map View 50x35 Zoom Use 0% Tactical HUD 1 Map Filters NONE Filters NONE Steam 1 RUN: 93a05221-1db9-4b73-854e-3f071653431b